[Event "Titled Tuesday Blitz January 10 Early 2023"]
[White "Kosakowski, Jakub"]
[Black "Przybylski, Wojciech"]
[WhiteFideId "1185080"]
[BlackFideId "1117599"]
[WhiteElo "2831"]
[BlackElo "2554"]
[Result "1-0"]
[Round "04"]
[TimeControl "180+1"]
[Date "2023.01.10"]
[WhiteClock "0:00:10"]
[BlackClock "0:00:01"]

1. d4 {[%clk 0:02:49]}  d5 {[%clk 0:02:58]} 2. Nf3 {[%clk 0:02:48]}  Nf6 {[%clk 0:02:58]} 3. c3 {[%clk 0:02:48]}  c6 {[%clk 0:02:58]} 4. Bf4 {[%clk 0:02:48]}  Bg4 {[%clk 0:02:55]} 5. Nbd2 {[%clk 0:02:47]}  Nbd7 {[%clk 0:02:55]} 6. h3 {[%clk 0:02:44]}  Bxf3 {[%clk 0:02:54]} 7. Nxf3 {[%clk 0:02:43]}  e6 {[%clk 0:02:52]} 8. e3 {[%clk 0:02:44]}  Be7 {[%clk 0:02:52]} 9. Bd3 {[%clk 0:02:44]}  O-O {[%clk 0:02:51]} 10. O-O {[%clk 0:02:41]}  a5 {[%clk 0:02:41]} 11. Qc2 {[%clk 0:02:34]}  a4 {[%clk 0:02:40]} 12. Rfe1 {[%clk 0:02:31]}  g6 {[%clk 0:02:35]} 13. e4 {[%clk 0:02:12]}  dxe4 {[%clk 0:02:33]} 14. Bxe4 {[%clk 0:02:13]}  Nxe4 {[%clk 0:02:33]} 15. Rxe4 {[%clk 0:02:13]}  Re8 {[%clk 0:02:29]} 16. Rae1 {[%clk 0:02:11]}  Bf6 {[%clk 0:02:25]} 17. Qe2 {[%clk 0:02:05]}  Ra5 {[%clk 0:02:15]} 18. Bg3 {[%clk 0:02:00]}  Bg7 {[%clk 0:02:08]} 19. Ne5 {[%clk 0:01:46]}  Nf6 {[%clk 0:01:58]} 20. Rf4 {[%clk 0:01:42]}  Nd5 {[%clk 0:01:44]} 21. Rf3 {[%clk 0:01:37]}  f5 {[%clk 0:01:43]} 22. Nd3 {[%clk 0:01:33]}  a3 {[%clk 0:01:35]} 23. c4 {[%clk 0:01:26]}  Nf6 {[%clk 0:01:08]} 24. b4 {[%clk 0:01:24]}  Ra8 {[%clk 0:01:05]} 25. Be5 {[%clk 0:01:20]}  Ne4 {[%clk 0:01:04]} 26. Bxg7 {[%clk 0:00:52]}  Kxg7 {[%clk 0:01:03]} 27. Qe3 {[%clk 0:00:52]}  b5 {[%clk 0:00:57]} 28. Nc5 {[%clk 0:00:44]}  Ng5 {[%clk 0:00:29]} 29. Rg3 {[%clk 0:00:42]}  Ne4 {[%clk 0:00:18]} 30. Nxe4 {[%clk 0:00:41]}  fxe4 {[%clk 0:00:18]} 31. cxb5 {[%clk 0:00:41]}  cxb5 {[%clk 0:00:18]} 32. Qxe4 {[%clk 0:00:41]}  Qd5 {[%clk 0:00:17]} 33. Qxd5 {[%clk 0:00:33]}  exd5 {[%clk 0:00:18]} 34. Rxe8 {[%clk 0:00:33]}  Rxe8 {[%clk 0:00:17]} 35. Rxa3 {[%clk 0:00:34]}  Re1+ {[%clk 0:00:17]} 36. Kh2 {[%clk 0:00:34]}  Rb1 {[%clk 0:00:17]} 37. Ra7+ {[%clk 0:00:26]}  Kf6 {[%clk 0:00:17]} 38. a3 {[%clk 0:00:24]}  Rb3 {[%clk 0:00:12]} 39. Rb7 {[%clk 0:00:23]}  Rxa3 {[%clk 0:00:08]} 40. Rxb5 {[%clk 0:00:23]}  Ke6 {[%clk 0:00:08]} 41. Rb6+ {[%clk 0:00:22]}  Kf5 {[%clk 0:00:08]} 42. f3 {[%clk 0:00:20]}  Rd3 {[%clk 0:00:07]} 43. b5 {[%clk 0:00:13]}  Rxd4 {[%clk 0:00:07]} 44. Rb8 {[%clk 0:00:13]}  Rb4 {[%clk 0:00:06]} 45. b6 {[%clk 0:00:14]}  Kg5 {[%clk 0:00:03]} 46. b7 {[%clk 0:00:13]}  d4 {[%clk 0:00:02]} 47. Kg3 {[%clk 0:00:13]}  d3 {[%clk 0:00:02]} 48. Kf2 {[%clk 0:00:13]}  Rb2+ {[%clk 0:00:02]} 49. Ke3 {[%clk 0:00:13]}  d2 {[%clk 0:00:03]} 50. Ke2 {[%clk 0:00:14]}  Kh6 {[%clk 0:00:02]} 51. f4 {[%clk 0:00:10]}  g5 {[%clk 0:00:02]} 52. f5 {[%clk 0:00:10]}  Kg7 {[%clk 0:00:01]} 53. f6+ {[%clk 0:00:10]}  Kh6 {[%clk 0:00:01]} 54. f7 {[%clk 0:00:10]}  d1=Q+ {[%clk 0:00:01]} 55. Kxd1 {[%clk 0:00:10]} 1-0


[Site "https://www.chess.com"]

[Event "Titled Tuesday Blitz January 10 Early 2023"]
[White "Sokolovsky, Yahli"]
[Black "Bluebaum, Matthias"]
[WhiteFideId "2820242"]
[BlackFideId "24651516"]
[WhiteElo "2627"]
[BlackElo "3034"]
[Result "1-0"]
[Round "04"]
[TimeControl "180+1"]
[Date "2023.01.10"]
[WhiteClock "0:00:11"]
[BlackClock "0:00:06"]

1. b3 {[%clk 0:02:51]}  d5 {[%clk 0:02:59]} 2. e3 {[%clk 0:02:50]}  c5 {[%clk 0:03:00]} 3. Bb2 {[%clk 0:02:51]}  a6 {[%clk 0:02:59]} 4. Nf3 {[%clk 0:02:50]}  Nc6 {[%clk 0:03:00]} 5. d4 {[%clk 0:02:51]}  Nf6 {[%clk 0:03:00]} 6. Bd3 {[%clk 0:02:49]}  Bg4 {[%clk 0:02:58]} 7. a3 {[%clk 0:02:47]}  cxd4 {[%clk 0:02:57]} 8. exd4 {[%clk 0:02:47]}  e6 {[%clk 0:02:58]} 9. Nbd2 {[%clk 0:02:47]}  Bd6 {[%clk 0:02:58]} 10. O-O {[%clk 0:02:47]}  O-O {[%clk 0:02:58]} 11. Qe1 {[%clk 0:02:35]}  Qb6 {[%clk 0:02:35]} 12. Qe3 {[%clk 0:02:22]}  Bh5 {[%clk 0:02:29]} 13. Rfe1 {[%clk 0:01:56]}  Bg6 {[%clk 0:02:28]} 14. Bxg6 {[%clk 0:01:48]}  hxg6 {[%clk 0:02:29]} 15. Ng5 {[%clk 0:01:46]}  Qc7 {[%clk 0:02:23]} 16. Qh3 {[%clk 0:01:46]}  Rfe8 {[%clk 0:02:00]} 17. Ndf3 {[%clk 0:01:42]}  Ne7 {[%clk 0:01:55]} 18. Ne5 {[%clk 0:00:45]}  Bxe5 {[%clk 0:01:13]} 19. dxe5 {[%clk 0:00:46]}  Nh5 {[%clk 0:01:14]} 20. g4 {[%clk 0:00:46]}  Qxc2 {[%clk 0:01:14]} 21. Bd4 {[%clk 0:00:46]}  Nc6 {[%clk 0:01:10]} 22. Rac1 {[%clk 0:00:39]}  Qd2 {[%clk 0:00:50]} 23. Be3 {[%clk 0:00:36]}  Qd3 {[%clk 0:00:36]} 24. Rcd1 {[%clk 0:00:31]}  Qxb3 {[%clk 0:00:15]} 25. gxh5 {[%clk 0:00:31]}  gxh5 {[%clk 0:00:15]} 26. Qxh5 {[%clk 0:00:28]}  Qc2 {[%clk 0:00:13]} 27. Qxf7+ {[%clk 0:00:26]}  Kh8 {[%clk 0:00:13]} 28. Nxe6 {[%clk 0:00:16]}  Qh7 {[%clk 0:00:11]} 29. Ng5 {[%clk 0:00:13]}  Qh4 {[%clk 0:00:12]} 30. Qf4 {[%clk 0:00:13]}  Qh5 {[%clk 0:00:11]} 31. Rxd5 {[%clk 0:00:12]}  Rf8 {[%clk 0:00:12]} 32. Qg3 {[%clk 0:00:13]}  Ne7 {[%clk 0:00:12]} 33. Rd7 {[%clk 0:00:12]}  Nf5 {[%clk 0:00:13]} 34. Qh3 {[%clk 0:00:11]}  Nh4 {[%clk 0:00:12]} 35. Kh1 {[%clk 0:00:09]}  Rad8 {[%clk 0:00:10]} 36. Rxd8 {[%clk 0:00:08]}  Rxd8 {[%clk 0:00:11]} 37. Nf7+ {[%clk 0:00:08]}  Qxf7 {[%clk 0:00:02]} 38. Qxh4+ {[%clk 0:00:08]}  Kg8 {[%clk 0:00:03]} 39. Qxd8+ {[%clk 0:00:09]}  Kh7 {[%clk 0:00:04]} 40. Qh4+ {[%clk 0:00:09]}  Kg8 {[%clk 0:00:04]} 41. Qg3 {[%clk 0:00:10]}  Qd5+ {[%clk 0:00:05]} 42. Qg2 {[%clk 0:00:11]}  Qe6 {[%clk 0:00:05]} 43. Bf4 {[%clk 0:00:11]}  Qf5 {[%clk 0:00:06]} 44. Bg3 {[%clk 0:00:11]}  Qe6 {[%clk 0:00:06]} 45. Qe4 {[%clk 0:00:12]}  b5 {[%clk 0:00:07]} 46. Kg2 {[%clk 0:00:12]}  a5 {[%clk 0:00:07]} 47. Rd1 {[%clk 0:00:12]}  b4 {[%clk 0:00:07]} 48. Rd8+ {[%clk 0:00:13]}  Kf7 {[%clk 0:00:08]} 49. Qf4+ {[%clk 0:00:08]}  Kg6 {[%clk 0:00:07]} 50. Rd6 {[%clk 0:00:09]}  Kh5 {[%clk 0:00:07]} 51. Rxe6 {[%clk 0:00:09]}  bxa3 {[%clk 0:00:07]} 52. Qf5+ {[%clk 0:00:09]}  g5 {[%clk 0:00:06]} 53. Qh7+ {[%clk 0:00:10]}  Kg4 {[%clk 0:00:06]} 54. Qh3# {[%clk 0:00:11]} 1-0


[Site "https://www.chess.com"]

[Event "Titled Tuesday Blitz January 10 Early 2023"]
[White "Jobava, Baadur"]
[Black "Blanco Ronquillo, Humberto L."]
[WhiteFideId "13601520"]
[BlackFideId "3504239"]
[WhiteElo "3020"]
[BlackElo "2626"]
[Result "1-0"]
[Round "04"]
[TimeControl "180+1"]
[Date "2023.01.10"]
[WhiteClock "0:00:30"]
[BlackClock "0:00:05"]

1. b3 {[%clk 0:03:00]}  d5 {[%clk 0:02:59]} 2. Bb2 {[%clk 0:03:01]}  Bf5 {[%clk 0:02:59]} 3. d3 {[%clk 0:03:01]}  e6 {[%clk 0:03:00]} 4. Nd2 {[%clk 0:03:02]}  Nf6 {[%clk 0:02:58]} 5. g3 {[%clk 0:03:02]}  c5 {[%clk 0:02:56]} 6. Bg2 {[%clk 0:03:03]}  Nc6 {[%clk 0:02:56]} 7. e4 {[%clk 0:03:04]}  Bg6 {[%clk 0:02:50]} 8. Ne2 {[%clk 0:03:04]}  Be7 {[%clk 0:02:37]} 9. exd5 {[%clk 0:03:04]}  Nxd5 {[%clk 0:02:36]} 10. Bxg7 {[%clk 0:03:03]}  Rg8 {[%clk 0:02:36]} 11. Bb2 {[%clk 0:03:03]}  Bf6 {[%clk 0:02:36]} 12. Bxf6 {[%clk 0:03:03]}  Qxf6 {[%clk 0:02:37]} 13. O-O {[%clk 0:03:03]}  O-O-O {[%clk 0:02:34]} 14. a4 {[%clk 0:02:57]}  Nd4 {[%clk 0:02:31]} 15. a5 {[%clk 0:02:48]}  a6 {[%clk 0:02:16]} 16. Nxd4 {[%clk 0:02:47]}  Qxd4 {[%clk 0:02:10]} 17. Nc4 {[%clk 0:02:42]}  Kb8 {[%clk 0:02:07]} 18. Qf3 {[%clk 0:02:40]}  h5 {[%clk 0:01:58]} 19. Nb6 {[%clk 0:02:32]}  h4 {[%clk 0:01:50]} 20. Ra4 {[%clk 0:02:31]}  Qc3 {[%clk 0:01:45]} 21. Rc4 {[%clk 0:02:30]}  Qxa5 {[%clk 0:01:44]} 22. Nxd5 {[%clk 0:02:28]}  exd5 {[%clk 0:01:42]} 23. Rxh4 {[%clk 0:02:29]}  Ka8 {[%clk 0:01:39]} 24. Ra4 {[%clk 0:02:15]}  Qc3 {[%clk 0:01:37]} 25. Rfa1 {[%clk 0:02:15]}  Rge8 {[%clk 0:01:37]} 26. Qd1 {[%clk 0:02:10]}  Re6 {[%clk 0:01:27]} 27. h4 {[%clk 0:01:41]}  Kb8 {[%clk 0:01:15]} 28. Kh2 {[%clk 0:01:38]}  Rf6 {[%clk 0:01:13]} 29. Qe2 {[%clk 0:01:31]}  Re6 {[%clk 0:01:10]} 30. Qd1 {[%clk 0:01:26]}  Rf6 {[%clk 0:01:00]} 31. Kg1 {[%clk 0:01:25]}  Re6 {[%clk 0:00:59]} 32. R4a2 {[%clk 0:00:53]}  Rde8 {[%clk 0:00:57]} 33. Qf3 {[%clk 0:00:53]}  Re5 {[%clk 0:00:46]} 34. Qf4 {[%clk 0:00:50]}  Ka7 {[%clk 0:00:45]} 35. Bxd5 {[%clk 0:00:46]}  Qd4 {[%clk 0:00:09]} 36. Qxd4 {[%clk 0:00:44]}  cxd4 {[%clk 0:00:10]} 37. Bf3 {[%clk 0:00:42]}  R8e7 {[%clk 0:00:10]} 38. Kg2 {[%clk 0:00:42]}  Rc7 {[%clk 0:00:10]} 39. g4 {[%clk 0:00:40]}  Rec5 {[%clk 0:00:10]} 40. h5 {[%clk 0:00:41]}  Bh7 {[%clk 0:00:11]} 41. Re1 {[%clk 0:00:35]}  a5 {[%clk 0:00:06]} 42. Kg3 {[%clk 0:00:34]}  Ka6 {[%clk 0:00:06]} 43. b4 {[%clk 0:00:33]}  Rxc2 {[%clk 0:00:04]} 44. Rxa5+ {[%clk 0:00:32]}  Kb6 {[%clk 0:00:05]} 45. Be4 {[%clk 0:00:29]}  Bxe4 {[%clk 0:00:04]} 46. Rxe4 {[%clk 0:00:30]}  Rd2 {[%clk 0:00:05]} 47. Rxd4 {[%clk 0:00:30]}  Rcc2 {[%clk 0:00:05]} 48. Rf5 {[%clk 0:00:30]} 1-0


[Site "https://www.chess.com"]

[Event "Titled Tuesday Blitz January 10 Early 2023"]
[White "Martinez Alcantara, Jose Eduardo"]
[Black "Piesik, Piotr"]
[WhiteFideId "3805662"]
[BlackFideId "1136194"]
[WhiteElo "2970"]
[BlackElo "2618"]
[Result "1-0"]
[Round "04"]
[TimeControl "180+1"]
[Date "2023.01.10"]
[WhiteClock "0:00:12"]
[BlackClock "0:00:16"]

1. e4 {[%clk 0:02:59]}  e6 {[%clk 0:02:59]} 2. d4 {[%clk 0:02:59]}  d5 {[%clk 0:03:00]} 3. exd5 {[%clk 0:03:00]}  exd5 {[%clk 0:03:00]} 4. Nf3 {[%clk 0:03:01]}  Nf6 {[%clk 0:02:56]} 5. Bd3 {[%clk 0:03:01]}  Bd6 {[%clk 0:02:55]} 6. O-O {[%clk 0:03:01]}  O-O {[%clk 0:02:55]} 7. h3 {[%clk 0:03:02]}  b6 {[%clk 0:02:53]} 8. Bg5 {[%clk 0:03:00]}  Ba6 {[%clk 0:02:52]} 9. Nc3 {[%clk 0:03:01]}  Bxd3 {[%clk 0:02:52]} 10. Qxd3 {[%clk 0:03:02]}  c6 {[%clk 0:02:52]} 11. Ne5 {[%clk 0:02:59]}  Re8 {[%clk 0:02:45]} 12. f4 {[%clk 0:02:59]}  Be7 {[%clk 0:02:38]} 13. Rae1 {[%clk 0:02:57]}  Qc7 {[%clk 0:02:32]} 14. Bxf6 {[%clk 0:02:35]}  Bxf6 {[%clk 0:02:32]} 15. Ng4 {[%clk 0:02:36]}  Be7 {[%clk 0:02:28]} 16. Re3 {[%clk 0:02:31]}  Rf8 {[%clk 0:02:15]} 17. g3 {[%clk 0:02:19]}  Bd6 {[%clk 0:02:07]} 18. Rfe1 {[%clk 0:02:19]}  Nd7 {[%clk 0:02:06]} 19. Kg2 {[%clk 0:02:19]}  Rad8 {[%clk 0:01:58]} 20. Qf5 {[%clk 0:02:14]}  Qc8 {[%clk 0:01:55]} 21. Qd3 {[%clk 0:02:04]}  Rde8 {[%clk 0:01:54]} 22. Ne5 {[%clk 0:02:03]}  f6 {[%clk 0:01:51]} 23. Ng4 {[%clk 0:02:04]}  Rxe3 {[%clk 0:01:50]} 24. Nxe3 {[%clk 0:02:04]}  Re8 {[%clk 0:01:48]} 25. Re2 {[%clk 0:02:05]}  g6 {[%clk 0:01:42]} 26. Ncd1 {[%clk 0:02:03]}  f5 {[%clk 0:01:34]} 27. c4 {[%clk 0:02:03]}  Nf6 {[%clk 0:01:33]} 28. cxd5 {[%clk 0:02:02]}  Nxd5 {[%clk 0:01:30]} 29. Nxd5 {[%clk 0:02:00]}  cxd5 {[%clk 0:01:27]} 30. Nc3 {[%clk 0:02:00]}  Rxe2+ {[%clk 0:01:22]} 31. Qxe2 {[%clk 0:02:01]}  Kf7 {[%clk 0:01:22]} 32. Qb5 {[%clk 0:01:35]}  h5 {[%clk 0:01:09]} 33. h4 {[%clk 0:01:31]}  Qe6 {[%clk 0:01:03]} 34. Kf2 {[%clk 0:01:30]}  Be7 {[%clk 0:00:58]} 35. Qxd5 {[%clk 0:01:23]}  Bf6 {[%clk 0:00:56]} 36. Qxe6+ {[%clk 0:01:22]}  Kxe6 {[%clk 0:00:57]} 37. Ke3 {[%clk 0:01:23]}  a6 {[%clk 0:00:54]} 38. Kd3 {[%clk 0:01:21]}  Kd6 {[%clk 0:00:53]} 39. a4 {[%clk 0:01:17]}  Be7 {[%clk 0:00:50]} 40. Kc4 {[%clk 0:01:17]}  Kc6 {[%clk 0:00:47]} 41. b4 {[%clk 0:01:14]}  Bf8 {[%clk 0:00:42]} 42. b5+ {[%clk 0:01:10]}  axb5+ {[%clk 0:00:42]} 43. axb5+ {[%clk 0:01:00]}  Kc7 {[%clk 0:00:39]} 44. Nd5+ {[%clk 0:00:29]}  Kb7 {[%clk 0:00:38]} 45. Nf6 {[%clk 0:00:20]}  Kc7 {[%clk 0:00:38]} 46. Kd5 {[%clk 0:00:20]}  Bb4 {[%clk 0:00:37]} 47. Ke6 {[%clk 0:00:16]}  Be1 {[%clk 0:00:36]} 48. Kf7 {[%clk 0:00:17]}  Bxg3 {[%clk 0:00:35]} 49. Kxg6 {[%clk 0:00:17]}  Bxh4 {[%clk 0:00:34]} 50. Nxh5 {[%clk 0:00:14]}  Kd6 {[%clk 0:00:32]} 51. Ng7 {[%clk 0:00:14]}  Kd5 {[%clk 0:00:30]} 52. Nxf5 {[%clk 0:00:15]}  Bf2 {[%clk 0:00:29]} 53. Ne7+ {[%clk 0:00:12]}  Kxd4 {[%clk 0:00:25]} 54. f5 {[%clk 0:00:12]}  Bh4 {[%clk 0:00:23]} 55. Nc6+ {[%clk 0:00:13]}  Kc5 {[%clk 0:00:20]} 56. Na7 {[%clk 0:00:13]}  Kd6 {[%clk 0:00:19]} 57. f6 {[%clk 0:00:10]}  Ke6 {[%clk 0:00:18]} 58. f7 {[%clk 0:00:11]}  Be7 {[%clk 0:00:17]} 59. Kg7 {[%clk 0:00:11]}  Bf6+ {[%clk 0:00:16]} 60. Kg8 {[%clk 0:00:12]} 1-0


[Site "https://www.chess.com"]

[Event "Titled Tuesday Blitz January 10 Early 2023"]
[White "Oro, Faustino"]
[Black "Oparin, Grigoriy"]
[WhiteFideId "20000197"]
[BlackFideId "24125890"]
[WhiteElo "2613"]
[BlackElo "2942"]
[Result "0-1"]
[Round "04"]
[TimeControl "180+1"]
[Date "2023.01.10"]
[WhiteClock "0:00:02"]
[BlackClock "0:00:22"]

1. e4 {[%clk 0:03:00]}  e6 {[%clk 0:03:00]} 2. d4 {[%clk 0:03:00]}  d5 {[%clk 0:03:01]} 3. Nd2 {[%clk 0:03:00]}  h6 {[%clk 0:03:00]} 4. Ngf3 {[%clk 0:02:56]}  c5 {[%clk 0:02:56]} 5. exd5 {[%clk 0:02:54]}  Qxd5 {[%clk 0:02:57]} 6. Bc4 {[%clk 0:02:53]}  Qd7 {[%clk 0:02:53]} 7. dxc5 {[%clk 0:02:46]}  Bxc5 {[%clk 0:02:51]} 8. O-O {[%clk 0:02:45]}  Nf6 {[%clk 0:02:50]} 9. Qe2 {[%clk 0:02:42]}  O-O {[%clk 0:02:48]} 10. Ne5 {[%clk 0:02:41]}  Qc7 {[%clk 0:02:47]} 11. Ndf3 {[%clk 0:02:40]}  Nc6 {[%clk 0:02:44]} 12. Nxc6 {[%clk 0:02:26]}  bxc6 {[%clk 0:02:45]} 13. Be3 {[%clk 0:02:17]}  Bd6 {[%clk 0:02:44]} 14. h3 {[%clk 0:02:11]}  e5 {[%clk 0:02:39]} 15. Rad1 {[%clk 0:02:06]}  e4 {[%clk 0:02:33]} 16. Nd4 {[%clk 0:02:04]}  Re8 {[%clk 0:02:30]} 17. c3 {[%clk 0:01:52]}  Rb8 {[%clk 0:02:29]} 18. Bb3 {[%clk 0:01:50]}  a6 {[%clk 0:02:11]} 19. Qc4 {[%clk 0:01:40]}  c5 {[%clk 0:02:08]} 20. Ne2 {[%clk 0:01:27]}  Be6 {[%clk 0:01:59]} 21. Qxa6 {[%clk 0:01:03]}  Bh2+ {[%clk 0:01:35]} 22. Kh1 {[%clk 0:01:03]}  Ra8 {[%clk 0:01:34]} 23. Qb5 {[%clk 0:01:02]}  c4 {[%clk 0:01:33]} 24. Bc2 {[%clk 0:01:00]}  Reb8 {[%clk 0:01:28]} 25. Qc5 {[%clk 0:00:57]}  Rxb2 {[%clk 0:01:28]} 26. Qxc7 {[%clk 0:00:52]}  Bxc7 {[%clk 0:01:28]} 27. Nd4 {[%clk 0:00:53]}  Raxa2 {[%clk 0:01:17]} 28. Bb1 {[%clk 0:00:48]}  Ra6 {[%clk 0:01:14]} 29. Nxe6 {[%clk 0:00:44]}  Rxe6 {[%clk 0:01:14]} 30. Rd4 {[%clk 0:00:41]}  Bb6 {[%clk 0:01:05]} 31. Rxc4 {[%clk 0:00:36]}  Bxe3 {[%clk 0:01:05]} 32. fxe3 {[%clk 0:00:37]}  Reb6 {[%clk 0:01:03]} 33. Bxe4 {[%clk 0:00:34]}  g6 {[%clk 0:00:53]} 34. Bf3 {[%clk 0:00:31]}  Kg7 {[%clk 0:00:50]} 35. Rc6 {[%clk 0:00:30]}  Rxc6 {[%clk 0:00:48]} 36. Bxc6 {[%clk 0:00:30]}  Rc2 {[%clk 0:00:49]} 37. Bf3 {[%clk 0:00:29]}  Rxc3 {[%clk 0:00:49]} 38. e4 {[%clk 0:00:29]}  Re3 {[%clk 0:00:48]} 39. Kh2 {[%clk 0:00:25]}  h5 {[%clk 0:00:48]} 40. Ra1 {[%clk 0:00:25]}  Nxe4 {[%clk 0:00:47]} 41. Ra7 {[%clk 0:00:22]}  Nf6 {[%clk 0:00:45]} 42. Bc6 {[%clk 0:00:21]}  Rc3 {[%clk 0:00:43]} 43. Bb5 {[%clk 0:00:20]}  h4 {[%clk 0:00:43]} 44. Ra4 {[%clk 0:00:19]}  g5 {[%clk 0:00:41]} 45. Rd4 {[%clk 0:00:17]}  Nh5 {[%clk 0:00:39]} 46. Be2 {[%clk 0:00:12]}  Ng3 {[%clk 0:00:39]} 47. Bd1 {[%clk 0:00:06]}  Rc1 {[%clk 0:00:37]} 48. Rd3 {[%clk 0:00:06]}  Kf6 {[%clk 0:00:36]} 49. Kg1 {[%clk 0:00:05]}  Ke5 {[%clk 0:00:34]} 50. Kf2 {[%clk 0:00:05]}  f5 {[%clk 0:00:35]} 51. Rd8 {[%clk 0:00:05]}  Ra1 {[%clk 0:00:34]} 52. Bf3 {[%clk 0:00:05]}  Ra2+ {[%clk 0:00:30]} 53. Ke1 {[%clk 0:00:05]}  Kf4 {[%clk 0:00:28]} 54. Rd4+ {[%clk 0:00:05]}  Ke3 {[%clk 0:00:28]} 55. Rc4 {[%clk 0:00:02]}  Ra1+ {[%clk 0:00:27]} 56. Bd1 {[%clk 0:00:03]}  Ne4 {[%clk 0:00:24]} 57. Rb4 {[%clk 0:00:02]}  Nc3 {[%clk 0:00:22]} 0-1


[Site "https://www.chess.com"]

[Event "Titled Tuesday Blitz January 10 Early 2023"]
[White "Boruchovsky, Avital"]
[Black "Hirneise, Jens"]
[WhiteFideId "2800055"]
[BlackFideId "24614734"]
[WhiteElo "2791"]
[BlackElo "2560"]
[Result "1-0"]
[Round "04"]
[TimeControl "180+1"]
[Date "2023.01.10"]
[WhiteClock "0:00:07"]
[BlackClock "0:00:14"]

1. c4 {[%clk 0:03:00]}  e6 {[%clk 0:02:58]} 2. Nc3 {[%clk 0:02:58]}  Nf6 {[%clk 0:02:58]} 3. e4 {[%clk 0:02:58]}  d5 {[%clk 0:02:56]} 4. e5 {[%clk 0:02:59]}  Ne4 {[%clk 0:02:44]} 5. Nf3 {[%clk 0:02:58]}  Be7 {[%clk 0:02:34]} 6. Qc2 {[%clk 0:02:40]}  Nxc3 {[%clk 0:02:31]} 7. dxc3 {[%clk 0:02:39]}  c5 {[%clk 0:02:24]} 8. Bd3 {[%clk 0:02:35]}  h6 {[%clk 0:02:14]} 9. O-O {[%clk 0:02:32]}  Nc6 {[%clk 0:02:09]} 10. Bf4 {[%clk 0:02:32]}  Bd7 {[%clk 0:01:51]} 11. Rad1 {[%clk 0:02:30]}  Qa5 {[%clk 0:01:48]} 12. cxd5 {[%clk 0:02:26]}  exd5 {[%clk 0:01:48]} 13. Bf5 {[%clk 0:02:27]}  Bxf5 {[%clk 0:01:37]} 14. Qxf5 {[%clk 0:02:28]}  g6 {[%clk 0:01:33]} 15. Qh3 {[%clk 0:02:16]}  Rd8 {[%clk 0:01:25]} 16. e6 {[%clk 0:02:09]}  Qa4 {[%clk 0:01:07]} 17. exf7+ {[%clk 0:02:02]}  Kxf7 {[%clk 0:01:08]} 18. Ne5+ {[%clk 0:01:52]}  Nxe5 {[%clk 0:01:02]} 19. Bxe5 {[%clk 0:01:53]}  Rh7 {[%clk 0:00:59]} 20. f4 {[%clk 0:01:51]}  Qe4 {[%clk 0:00:55]} 21. f5 {[%clk 0:01:32]}  Qxe5 {[%clk 0:00:46]} 22. Rde1 {[%clk 0:01:31]}  Qd6 {[%clk 0:00:33]} 23. fxg6+ {[%clk 0:01:28]}  Kxg6 {[%clk 0:00:32]} 24. Re6+ {[%clk 0:01:20]}  Kg7 {[%clk 0:00:32]} 25. Rxd6 {[%clk 0:01:14]}  Rxd6 {[%clk 0:00:30]} 26. Qf5 {[%clk 0:01:09]}  Kg8 {[%clk 0:00:26]} 27. Qc8+ {[%clk 0:01:08]}  Rd8 {[%clk 0:00:25]} 28. Qe6+ {[%clk 0:01:05]}  Kh8 {[%clk 0:00:26]} 29. Rf7 {[%clk 0:01:04]}  Rxf7 {[%clk 0:00:25]} 30. Qxf7 {[%clk 0:01:05]}  Bg5 {[%clk 0:00:26]} 31. g3 {[%clk 0:00:57]}  d4 {[%clk 0:00:25]} 32. cxd4 {[%clk 0:00:54]}  cxd4 {[%clk 0:00:25]} 33. h4 {[%clk 0:00:55]}  Be3+ {[%clk 0:00:22]} 34. Kg2 {[%clk 0:00:53]}  Rg8 {[%clk 0:00:23]} 35. Kf3 {[%clk 0:00:38]}  Rg7 {[%clk 0:00:20]} 36. Qf6 {[%clk 0:00:34]}  Kh7 {[%clk 0:00:20]} 37. b4 {[%clk 0:00:29]}  Kg8 {[%clk 0:00:20]} 38. Qe6+ {[%clk 0:00:28]}  Rf7+ {[%clk 0:00:18]} 39. Ke4 {[%clk 0:00:24]}  Kf8 {[%clk 0:00:19]} 40. Qd6+ {[%clk 0:00:22]}  Kg7 {[%clk 0:00:18]} 41. h5 {[%clk 0:00:19]}  Kg8 {[%clk 0:00:17]} 42. a4 {[%clk 0:00:17]}  Rg7 {[%clk 0:00:17]} 43. a5 {[%clk 0:00:09]}  Kh7 {[%clk 0:00:17]} 44. Qe5 {[%clk 0:00:09]}  a6 {[%clk 0:00:17]} 45. Qf5+ {[%clk 0:00:09]}  Kg8 {[%clk 0:00:17]} 46. Qe6+ {[%clk 0:00:08]}  Kh7 {[%clk 0:00:17]} 47. g4 {[%clk 0:00:06]}  Kh8 {[%clk 0:00:13]} 48. Kd3 {[%clk 0:00:07]}  Kh7 {[%clk 0:00:13]} 49. Qe4+ {[%clk 0:00:07]}  Kh8 {[%clk 0:00:13]} 50. Kc4 {[%clk 0:00:07]}  Kg8 {[%clk 0:00:14]} 51. Kd5 {[%clk 0:00:07]}  Rd7+ {[%clk 0:00:13]} 52. Ke6 {[%clk 0:00:07]}  Rg7 {[%clk 0:00:13]} 53. Qd5 {[%clk 0:00:05]}  Kf8 {[%clk 0:00:12]} 54. Kf6 {[%clk 0:00:05]}  Bg5+ {[%clk 0:00:11]} 55. Kf5 {[%clk 0:00:05]}  Rf7+ {[%clk 0:00:10]} 56. Ke4 {[%clk 0:00:04]}  Re7+ {[%clk 0:00:11]} 57. Kxd4 {[%clk 0:00:04]}  Ke8 {[%clk 0:00:11]} 58. Qg8+ {[%clk 0:00:03]}  Kd7 {[%clk 0:00:11]} 59. Kc4 {[%clk 0:00:04]}  Re4+ {[%clk 0:00:11]} 60. Kb3 {[%clk 0:00:05]}  Rxg4 {[%clk 0:00:12]} 61. Qd5+ {[%clk 0:00:04]}  Ke7 {[%clk 0:00:11]} 62. Qxb7+ {[%clk 0:00:04]}  Kf6 {[%clk 0:00:11]} 63. Qxa6+ {[%clk 0:00:04]}  Kf5 {[%clk 0:00:12]} 64. Qc8+ {[%clk 0:00:04]}  Kf4 {[%clk 0:00:12]} 65. a6 {[%clk 0:00:05]}  Rg3+ {[%clk 0:00:13]} 66. Ka4 {[%clk 0:00:05]}  Bf6 {[%clk 0:00:13]} 67. a7 {[%clk 0:00:05]}  Rg1 {[%clk 0:00:13]} 68. a8=Q {[%clk 0:00:06]}  Ra1+ {[%clk 0:00:13]} 69. Kb5 {[%clk 0:00:06]}  Rxa8 {[%clk 0:00:14]} 70. Qxa8 {[%clk 0:00:07]} 1-0


[Site "https://www.chess.com"]